[Event "Titled Tuesday Blitz April 12 Early 2022"]
[White "Legenia, Artem"]
[Black "Tuleyeva-Aketayeva, Dana"]
[WhiteFideId "14136945"]
[BlackFideId "13701932"]
[WhiteElo "1936"]
[BlackElo "1875"]
[Result "0-1"]
[Round "09"]
[TimeControl "180+1"]
[Date "2022.04.13"]
[WhiteClock "0:01:29"]
[BlackClock "0:00:34"]

1. c4 {[%clk 0:03:00]}  c5 {[%clk 0:02:57]} 2. b3 {[%clk 0:02:59]}  Nf6 {[%clk 0:02:57]} 3. Bb2 {[%clk 0:02:59]}  g6 {[%clk 0:02:57]} 4. Nf3 {[%clk 0:02:58]}  Bg7 {[%clk 0:02:57]} 5. e3 {[%clk 0:02:59]}  O-O {[%clk 0:02:58]} 6. Be2 {[%clk 0:02:59]}  Nc6 {[%clk 0:02:58]} 7. O-O {[%clk 0:02:59]}  b6 {[%clk 0:02:58]} 8. a3 {[%clk 0:02:59]}  Bb7 {[%clk 0:02:58]} 9. d3 {[%clk 0:02:57]}  d5 {[%clk 0:02:48]} 10. cxd5 {[%clk 0:02:57]}  Nxd5 {[%clk 0:02:47]} 11. Bxg7 {[%clk 0:02:57]}  Kxg7 {[%clk 0:02:48]} 12. Qc2 {[%clk 0:02:57]}  Kg8 {[%clk 0:02:44]} 13. Nbd2 {[%clk 0:02:56]}  Ba6 {[%clk 0:02:37]} 14. Rfe1 {[%clk 0:02:53]}  Nf6 {[%clk 0:02:32]} 15. b4 {[%clk 0:02:45]}  Qd6 {[%clk 0:02:23]} 16. bxc5 {[%clk 0:02:42]}  bxc5 {[%clk 0:02:18]} 17. Rac1 {[%clk 0:02:42]}  Nd7 {[%clk 0:02:12]} 18. d4 {[%clk 0:02:42]}  Bxe2 {[%clk 0:02:10]} 19. Rxe2 {[%clk 0:02:41]}  Rac8 {[%clk 0:01:57]} 20. Ne4 {[%clk 0:02:39]}  Qd5 {[%clk 0:01:51]} 21. Nxc5 {[%clk 0:02:34]}  Nxc5 {[%clk 0:01:47]} 22. Qxc5 {[%clk 0:02:34]}  Qxc5 {[%clk 0:01:45]} 23. Rxc5 {[%clk 0:02:34]}  Nb8 {[%clk 0:01:28]} 24. Rec2 {[%clk 0:02:33]}  Rxc5 {[%clk 0:01:21]} 25. Rxc5 {[%clk 0:02:32]}  a6 {[%clk 0:01:14]} 26. Rc7 {[%clk 0:02:31]}  Re8 {[%clk 0:01:12]} 27. Ne5 {[%clk 0:02:31]}  f6 {[%clk 0:01:10]} 28. Nc4 {[%clk 0:02:29]}  Kf8 {[%clk 0:01:05]} 29. Nb6 {[%clk 0:02:27]}  Rd8 {[%clk 0:01:00]} 30. a4 {[%clk 0:02:25]}  Ke8 {[%clk 0:00:55]} 31. d5 {[%clk 0:02:05]}  Nd7 {[%clk 0:00:46]} 32. Rxd7 {[%clk 0:02:02]}  Rxd7 {[%clk 0:00:46]} 33. Nxd7 {[%clk 0:02:02]}  Kxd7 {[%clk 0:00:47]} 34. e4 {[%clk 0:02:02]}  Kd6 {[%clk 0:00:47]} 35. f3 {[%clk 0:01:59]}  Kc5 {[%clk 0:00:47]} 36. Kf2 {[%clk 0:01:57]}  Kb4 {[%clk 0:00:48]} 37. f4 {[%clk 0:01:57]}  Kxa4 {[%clk 0:00:46]} 38. g4 {[%clk 0:01:53]}  Kb4 {[%clk 0:00:41]} 39. Ke3 {[%clk 0:01:51]}  a5 {[%clk 0:00:41]} 40. g5 {[%clk 0:01:39]}  fxg5 {[%clk 0:00:35]} 41. fxg5 {[%clk 0:01:38]}  a4 {[%clk 0:00:35]} 42. e5 {[%clk 0:01:29]}  Kc5 {[%clk 0:00:34]} 0-1


[Site "https://www.chess.com"]

[Event "Titled Tuesday Blitz April 12 Early 2022"]
[White "Maltsevskaya, Aleksandra"]
[Black "Gharibyan, Mamikon"]
[WhiteFideId "24174041"]
[BlackFideId "13308300"]
[WhiteElo "2640"]
[BlackElo "2818"]
[Result "1-0"]
[Round "09"]
[TimeControl "180+1"]
[Date "2022.04.13"]
[WhiteClock "0:00:24"]
[BlackClock "0:00:37"]

1. e4 {[%clk 0:02:51]}  e5 {[%clk 0:02:59]} 2. Nf3 {[%clk 0:02:50]}  Nc6 {[%clk 0:02:59]} 3. Bb5 {[%clk 0:02:49]}  a6 {[%clk 0:02:59]} 4. Ba4 {[%clk 0:02:48]}  Nf6 {[%clk 0:02:59]} 5. O-O {[%clk 0:02:48]}  Bc5 {[%clk 0:02:58]} 6. c3 {[%clk 0:02:47]}  O-O {[%clk 0:02:58]} 7. d4 {[%clk 0:02:47]}  Ba7 {[%clk 0:02:59]} 8. Qd3 {[%clk 0:02:26]}  d5 {[%clk 0:02:48]} 9. Nbd2 {[%clk 0:02:20]}  dxe4 {[%clk 0:02:34]} 10. Nxe4 {[%clk 0:02:18]}  Bf5 {[%clk 0:02:34]} 11. Bxc6 {[%clk 0:01:47]}  bxc6 {[%clk 0:02:31]} 12. Nxf6+ {[%clk 0:01:46]}  Qxf6 {[%clk 0:02:29]} 13. Qc4 {[%clk 0:01:38]}  exd4 {[%clk 0:02:17]} 14. cxd4 {[%clk 0:01:29]}  Be4 {[%clk 0:02:11]} 15. Ne5 {[%clk 0:01:28]}  Rad8 {[%clk 0:01:54]} 16. Be3 {[%clk 0:01:23]}  c5 {[%clk 0:01:54]} 17. Rad1 {[%clk 0:01:05]}  cxd4 {[%clk 0:01:53]} 18. Bxd4 {[%clk 0:01:05]}  Qg5 {[%clk 0:01:30]} 19. g3 {[%clk 0:00:54]}  Bd5 {[%clk 0:01:21]} 20. Qxc7 {[%clk 0:00:40]}  Bb8 {[%clk 0:01:20]} 21. Qc3 {[%clk 0:00:39]}  Ba8 {[%clk 0:01:10]} 22. Rfe1 {[%clk 0:00:26]}  Rfe8 {[%clk 0:00:58]} 23. Nc6 {[%clk 0:00:25]}  Qd5 {[%clk 0:00:41]} 24. Rxe8+ {[%clk 0:00:24]}  Rxe8 {[%clk 0:00:37]} 25. Ne7+ {[%clk 0:00:24]} 1-0


[Site "https://www.chess.com"]

[Event "Titled Tuesday Blitz April 12 Early 2022"]
[White "Martic, Ivan"]
[Black "Almeida Junior, Alvaro Alves de"]
[WhiteFideId "929301"]
[BlackFideId "2149974"]
[WhiteElo "2317"]
[BlackElo "2086"]
[Result "1-0"]
[Round "09"]
[TimeControl "180+1"]
[Date "2022.04.13"]
[WhiteClock "0:01:08"]
[BlackClock "0:00:01"]

1. d4 {[%clk 0:03:00]}  Nf6 {[%clk 0:02:59]} 2. Nf3 {[%clk 0:03:00]}  d5 {[%clk 0:02:59]} 3. Bf4 {[%clk 0:02:58]}  c5 {[%clk 0:02:58]} 4. e3 {[%clk 0:02:58]}  Nc6 {[%clk 0:02:58]} 5. dxc5 {[%clk 0:02:49]}  Qa5+ {[%clk 0:02:54]} 6. Nc3 {[%clk 0:02:49]}  Qxc5 {[%clk 0:02:50]} 7. Bb5 {[%clk 0:02:41]}  e6 {[%clk 0:02:44]} 8. O-O {[%clk 0:02:36]}  Be7 {[%clk 0:02:40]} 9. Nd4 {[%clk 0:02:29]}  Bd7 {[%clk 0:02:35]} 10. a3 {[%clk 0:02:07]}  O-O {[%clk 0:02:31]} 11. Na4 {[%clk 0:02:05]}  Nxd4 {[%clk 0:02:05]} 12. Nxc5 {[%clk 0:02:04]}  Bxb5 {[%clk 0:01:35]} 13. exd4 {[%clk 0:02:01]}  Bxf1 {[%clk 0:01:34]} 14. Kxf1 {[%clk 0:02:00]}  b6 {[%clk 0:01:31]} 15. Nb3 {[%clk 0:01:58]}  Rac8 {[%clk 0:01:31]} 16. c3 {[%clk 0:01:58]}  h6 {[%clk 0:01:26]} 17. Kg1 {[%clk 0:01:57]}  g5 {[%clk 0:01:26]} 18. Be5 {[%clk 0:01:56]}  Nd7 {[%clk 0:01:17]} 19. Bg3 {[%clk 0:01:56]}  f5 {[%clk 0:01:16]} 20. f3 {[%clk 0:01:55]}  a5 {[%clk 0:01:13]} 21. a4 {[%clk 0:01:55]}  f4 {[%clk 0:01:02]} 22. Bf2 {[%clk 0:01:55]}  Bf6 {[%clk 0:00:55]} 23. Nc1 {[%clk 0:01:51]}  Rfe8 {[%clk 0:00:47]} 24. Nd3 {[%clk 0:01:51]}  Bg7 {[%clk 0:00:44]} 25. Qb3 {[%clk 0:01:49]}  Rc6 {[%clk 0:00:41]} 26. Re1 {[%clk 0:01:49]}  Kh8 {[%clk 0:00:27]} 27. h3 {[%clk 0:01:48]}  Bf6 {[%clk 0:00:24]} 28. Re2 {[%clk 0:01:47]}  Kg7 {[%clk 0:00:24]} 29. Ne5 {[%clk 0:01:44]}  Nxe5 {[%clk 0:00:23]} 30. dxe5 {[%clk 0:01:45]}  Be7 {[%clk 0:00:23]} 31. Bd4 {[%clk 0:01:42]}  Rb8 {[%clk 0:00:19]} 32. Qb5 {[%clk 0:01:41]}  Rc7 {[%clk 0:00:17]} 33. h4 {[%clk 0:01:36]}  gxh4 {[%clk 0:00:11]} 34. Kh2 {[%clk 0:01:34]}  Bg5 {[%clk 0:00:09]} 35. Qd3 {[%clk 0:01:27]}  Rc4 {[%clk 0:00:07]} 36. b3 {[%clk 0:01:26]}  Rc6 {[%clk 0:00:07]} 37. Rc2 {[%clk 0:01:26]}  Rbc8 {[%clk 0:00:02]} 38. Qa6 {[%clk 0:01:25]}  Be7 {[%clk 0:00:02]} 39. Qb5 {[%clk 0:01:20]}  Kf7 {[%clk 0:00:02]} 40. Qd3 {[%clk 0:01:18]}  Kg7 {[%clk 0:00:01]} 41. c4 {[%clk 0:01:19]}  dxc4 {[%clk 0:00:01]} 42. Rxc4 {[%clk 0:01:19]}  Rxc4 {[%clk 0:00:01]} 43. bxc4 {[%clk 0:01:19]}  Rd8 {[%clk 0:00:01]} 44. Qe4 {[%clk 0:01:19]}  Bg5 {[%clk 0:00:02]} 45. Kh3 {[%clk 0:01:14]}  Rg8 {[%clk 0:00:01]} 46. Bxb6 {[%clk 0:01:10]}  Be7 {[%clk 0:00:01]} 47. Qb7 {[%clk 0:01:09]}  Kf7 {[%clk 0:00:01]} 48. Bc5 {[%clk 0:01:08]} 1-0


[Site "https://www.chess.com"]

[Event "Titled Tuesday Blitz April 12 Early 2022"]
[White "Matlakov, Maxim"]
[Black "Caruana, Fabiano"]
[WhiteFideId "4168003"]
[BlackFideId "2020009"]
[WhiteElo "2669"]
[BlackElo "2744"]
[Result "1-0"]
[Round "09"]
[TimeControl "180+1"]
[Date "2022.04.12"]
[WhiteClock "0:00:28"]
[BlackClock "0:00:05"]

1. e4 {[%clk 0:03:00]}  c5 {[%clk 0:02:59]} 2. Nf3 {[%clk 0:03:00]}  e6 {[%clk 0:02:59]} 3. c3 {[%clk 0:03:00]}  Nf6 {[%clk 0:02:58]} 4. e5 {[%clk 0:03:00]}  Nd5 {[%clk 0:02:58]} 5. d4 {[%clk 0:03:01]}  cxd4 {[%clk 0:02:59]} 6. cxd4 {[%clk 0:03:02]}  d6 {[%clk 0:03:00]} 7. Bc4 {[%clk 0:03:01]}  Be7 {[%clk 0:03:00]} 8. O-O {[%clk 0:03:01]}  O-O {[%clk 0:03:01]} 9. Qe2 {[%clk 0:03:02]}  b6 {[%clk 0:02:57]} 10. Rd1 {[%clk 0:02:59]}  Bb7 {[%clk 0:02:56]} 11. Bxd5 {[%clk 0:02:55]}  exd5 {[%clk 0:02:52]} 12. Nc3 {[%clk 0:02:55]}  Na6 {[%clk 0:02:51]} 13. Nb5 {[%clk 0:02:37]}  dxe5 {[%clk 0:02:41]} 14. dxe5 {[%clk 0:02:37]}  Nc7 {[%clk 0:02:41]} 15. Nxc7 {[%clk 0:02:31]}  Qxc7 {[%clk 0:02:40]} 16. Nd4 {[%clk 0:02:32]}  Rfe8 {[%clk 0:02:29]} 17. Bf4 {[%clk 0:02:29]}  Qd7 {[%clk 0:02:28]} 18. Qd3 {[%clk 0:02:24]}  g6 {[%clk 0:02:15]} 19. h3 {[%clk 0:02:23]}  Rac8 {[%clk 0:02:14]} 20. Bh6 {[%clk 0:02:07]}  Bf8 {[%clk 0:01:48]} 21. Bxf8 {[%clk 0:02:06]}  Rxf8 {[%clk 0:01:48]} 22. Re1 {[%clk 0:02:05]}  Rfe8 {[%clk 0:01:43]} 23. Rad1 {[%clk 0:02:05]}  Qa4 {[%clk 0:01:34]} 24. a3 {[%clk 0:01:59]}  Rc7 {[%clk 0:01:29]} 25. f4 {[%clk 0:01:54]}  Bc8 {[%clk 0:01:26]} 26. Kh2 {[%clk 0:01:47]}  Be6 {[%clk 0:01:03]} 27. Rd2 {[%clk 0:01:46]}  Rec8 {[%clk 0:01:01]} 28. g4 {[%clk 0:01:40]}  Rc1 {[%clk 0:00:57]} 29. Rxc1 {[%clk 0:01:38]}  Rxc1 {[%clk 0:00:58]} 30. f5 {[%clk 0:01:38]}  Bc8 {[%clk 0:00:53]} 31. Rf2 {[%clk 0:00:58]}  Rd1 {[%clk 0:00:33]} 32. Rd2 {[%clk 0:00:57]}  Re1 {[%clk 0:00:32]} 33. Qc3 {[%clk 0:00:52]}  Ba6 {[%clk 0:00:26]} 34. e6 {[%clk 0:00:46]}  Qe8 {[%clk 0:00:26]} 35. Rf2 {[%clk 0:00:41]}  Qb8+ {[%clk 0:00:23]} 36. Kg2 {[%clk 0:00:38]}  Qe5 {[%clk 0:00:14]} 37. exf7+ {[%clk 0:00:36]}  Kf8 {[%clk 0:00:10]} 38. fxg6 {[%clk 0:00:29]}  Qe4+ {[%clk 0:00:05]} 39. Nf3 {[%clk 0:00:28]} 1-0


[Site "https://www.chess.com"]

[Event "Titled Tuesday Blitz April 12 Early 2022"]
[White "Migot, Tangi"]
[Black "Namitbir Singh Walia"]
[WhiteFideId "662445"]
[BlackFideId "35071068"]
[WhiteElo "2528"]
[BlackElo "1565"]
[Result "1-0"]
[Round "09"]
[TimeControl "180+1"]
[Date "2022.04.13"]
[WhiteClock "0:01:19"]
[BlackClock "0:00:04"]

1. Nf3 {[%clk 0:03:00]}  d5 {[%clk 0:02:57]} 2. c4 {[%clk 0:03:01]}  dxc4 {[%clk 0:02:55]} 3. g3 {[%clk 0:03:01]}  b6 {[%clk 0:02:53]} 4. Na3 {[%clk 0:03:00]}  Bb7 {[%clk 0:02:53]} 5. Bg2 {[%clk 0:03:01]}  Nf6 {[%clk 0:02:52]} 6. Nxc4 {[%clk 0:03:00]}  Nbd7 {[%clk 0:02:52]} 7. O-O {[%clk 0:03:00]}  e6 {[%clk 0:02:51]} 8. b3 {[%clk 0:03:00]}  Be7 {[%clk 0:02:50]} 9. a4 {[%clk 0:02:57]}  O-O {[%clk 0:02:48]} 10. Bb2 {[%clk 0:02:57]}  c5 {[%clk 0:02:42]} 11. a5 {[%clk 0:02:47]}  b5 {[%clk 0:02:23]} 12. a6 {[%clk 0:02:47]}  Bxf3 {[%clk 0:02:20]} 13. Bxf3 {[%clk 0:02:47]}  bxc4 {[%clk 0:02:21]} 14. Bxa8 {[%clk 0:02:47]}  Qxa8 {[%clk 0:02:20]} 15. bxc4 {[%clk 0:02:48]}  h6 {[%clk 0:02:10]} 16. d3 {[%clk 0:02:46]}  Rb8 {[%clk 0:02:02]} 17. Bc3 {[%clk 0:02:43]}  Qc6 {[%clk 0:02:01]} 18. Ra2 {[%clk 0:02:10]}  Rb6 {[%clk 0:01:42]} 19. Qa1 {[%clk 0:02:10]}  Rb3 {[%clk 0:01:28]} 20. Rb1 {[%clk 0:02:01]}  Qb6 {[%clk 0:01:28]} 21. Rab2 {[%clk 0:01:57]}  Rxb2 {[%clk 0:01:17]} 22. Rxb2 {[%clk 0:01:58]}  Qc6 {[%clk 0:00:44]} 23. Rb7 {[%clk 0:01:57]}  h5 {[%clk 0:00:34]} 24. h4 {[%clk 0:01:45]}  Bd6 {[%clk 0:00:17]} 25. Rxa7 {[%clk 0:01:41]}  Ng4 {[%clk 0:00:13]} 26. Rxd7 {[%clk 0:01:31]}  Qxd7 {[%clk 0:00:09]} 27. a7 {[%clk 0:01:31]}  e5 {[%clk 0:00:07]} 28. a8=Q+ {[%clk 0:01:30]}  Kh7 {[%clk 0:00:08]} 29. Qe4+ {[%clk 0:01:28]}  f5 {[%clk 0:00:05]} 30. Qd5 {[%clk 0:01:27]}  Qe7 {[%clk 0:00:05]} 31. Qa6 {[%clk 0:01:23]}  Bc7 {[%clk 0:00:05]} 32. Qde6 {[%clk 0:01:23]}  Qf8 {[%clk 0:00:04]} 33. Qac8 {[%clk 0:01:19]} 1-0


[Site "https://www.chess.com"]

[Event "Titled Tuesday Blitz April 12 Early 2022"]
[White "Mikhailov, Viacheslav"]
[Black "Lazavik, Denis"]
[WhiteFideId "4187369"]
[BlackFideId "13515110"]
[WhiteElo "2381"]
[BlackElo "2437"]
[Result "1/2-1/2"]
[Round "09"]
[TimeControl "180+1"]
[Date "2022.04.12"]
[WhiteClock "0:00:05"]
[BlackClock "0:00:20"]

1. Nf3 {[%clk 0:02:58]}  d5 {[%clk 0:02:59]} 2. g3 {[%clk 0:02:58]}  Nf6 {[%clk 0:02:59]} 3. Bg2 {[%clk 0:02:59]}  c6 {[%clk 0:02:59]} 4. O-O {[%clk 0:02:59]}  Bf5 {[%clk 0:03:00]} 5. c4 {[%clk 0:02:59]}  e6 {[%clk 0:03:00]} 6. d4 {[%clk 0:03:00]}  h6 {[%clk 0:02:59]} 7. Nc3 {[%clk 0:03:00]}  Nbd7 {[%clk 0:02:59]} 8. Bf4 {[%clk 0:02:56]}  Be7 {[%clk 0:02:57]} 9. Qb3 {[%clk 0:02:56]}  Qb6 {[%clk 0:02:57]} 10. c5 {[%clk 0:02:56]}  Qa6 {[%clk 0:02:44]} 11. Rfe1 {[%clk 0:02:56]}  b6 {[%clk 0:02:44]} 12. cxb6 {[%clk 0:02:37]}  axb6 {[%clk 0:02:43]} 13. Ne5 {[%clk 0:02:36]}  Nxe5 {[%clk 0:02:39]} 14. Bxe5 {[%clk 0:02:37]}  O-O {[%clk 0:02:37]} 15. e4 {[%clk 0:02:26]}  dxe4 {[%clk 0:02:34]} 16. Nxe4 {[%clk 0:02:27]}  Nd5 {[%clk 0:02:33]} 17. Rec1 {[%clk 0:02:18]}  Rfc8 {[%clk 0:02:31]} 18. Nd6 {[%clk 0:02:10]}  Bxd6 {[%clk 0:02:30]} 19. Bxd6 {[%clk 0:02:11]}  Qa4 {[%clk 0:02:24]} 20. Qxa4 {[%clk 0:02:00]}  Rxa4 {[%clk 0:02:25]} 21. Rd1 {[%clk 0:01:53]}  Rd8 {[%clk 0:02:24]} 22. Ba3 {[%clk 0:01:51]}  Nc3 {[%clk 0:02:12]} 23. bxc3 {[%clk 0:01:43]}  Rxa3 {[%clk 0:02:12]} 24. c4 {[%clk 0:01:20]}  Ra4 {[%clk 0:01:48]} 25. d5 {[%clk 0:01:12]}  cxd5 {[%clk 0:01:41]} 26. cxd5 {[%clk 0:01:13]}  Rd6 {[%clk 0:01:38]} 27. Rd2 {[%clk 0:01:05]}  g5 {[%clk 0:01:28]} 28. Rc1 {[%clk 0:00:56]}  Ra7 {[%clk 0:01:20]} 29. Rc6 {[%clk 0:00:41]}  Rad7 {[%clk 0:01:19]} 30. Rxd6 {[%clk 0:00:34]}  Rxd6 {[%clk 0:01:18]} 31. f4 {[%clk 0:00:28]}  gxf4 {[%clk 0:01:03]} 32. gxf4 {[%clk 0:00:29]}  exd5 {[%clk 0:01:04]} 33. Rxd5 {[%clk 0:00:28]}  Rf6 {[%clk 0:01:04]} 34. a3 {[%clk 0:00:24]}  Be6 {[%clk 0:00:43]} 35. Rd4 {[%clk 0:00:22]}  Rf5 {[%clk 0:00:42]} 36. Bh3 {[%clk 0:00:22]}  Ra5 {[%clk 0:00:40]} 37. Bxe6 {[%clk 0:00:22]}  fxe6 {[%clk 0:00:41]} 38. a4 {[%clk 0:00:20]}  Kf7 {[%clk 0:00:41]} 39. Rb4 {[%clk 0:00:20]}  Kf6 {[%clk 0:00:37]} 40. Kg2 {[%clk 0:00:20]}  Ra7 {[%clk 0:00:33]} 41. Kg3 {[%clk 0:00:17]}  h5 {[%clk 0:00:30]} 42. Kh4 {[%clk 0:00:15]}  Ra5 {[%clk 0:00:30]} 43. h3 {[%clk 0:00:13]}  Kf7 {[%clk 0:00:23]} 44. Rxb6 {[%clk 0:00:10]}  Rxa4 {[%clk 0:00:22]} 45. Kxh5 {[%clk 0:00:05]}  Rxf4 {[%clk 0:00:22]} 46. Kg5 {[%clk 0:00:05]}  Rf5+ {[%clk 0:00:20]} 47. Kg4 {[%clk 0:00:05]}  Kf6 {[%clk 0:00:21]} 48. Rb8 {[%clk 0:00:05]}  Rg5+ {[%clk 0:00:19]} 49. Kf4 {[%clk 0:00:05]}  Rf5+ {[%clk 0:00:19]} 50. Kg4 {[%clk 0:00:05]}  Ra5 {[%clk 0:00:19]} 51. Rf8+ {[%clk 0:00:05]}  Kg6 {[%clk 0:00:19]} 52. h4 {[%clk 0:00:05]}  Ra4+ {[%clk 0:00:19]} 53. Rf4 {[%clk 0:00:05]}  Rxf4+ {[%clk 0:00:18]} 54. Kxf4 {[%clk 0:00:04]}  Kh5 {[%clk 0:00:19]} 55. Ke5 {[%clk 0:00:04]}  Kxh4 {[%clk 0:00:20]} 56. Kxe6 {[%clk 0:00:05]} 1/2-1/2


[Site "https://www.chess.com"]

[Event "Titled Tuesday Blitz April 12 Early 2022"]
[White "Mirzoev, Azer"]
[Black "Indjic, Aleksandar"]
[WhiteFideId "13400304"]
[BlackFideId "911925"]
[WhiteElo "2525"]
[BlackElo "2616"]
[Result "0-1"]
[Round "09"]
[TimeControl "180+1"]
[Date "2022.04.12"]
[WhiteClock "0:00:08"]
[BlackClock "0:00:19"]

1. d4 {[%clk 0:03:00]}  Nf6 {[%clk 0:02:54]} 2. c4 {[%clk 0:02:59]}  e6 {[%clk 0:02:55]} 3. Nc3 {[%clk 0:03:00]}  c5 {[%clk 0:02:55]} 4. e3 {[%clk 0:02:59]}  cxd4 {[%clk 0:02:50]} 5. exd4 {[%clk 0:03:00]}  Bb4 {[%clk 0:02:50]} 6. Ne2 {[%clk 0:02:58]}  O-O {[%clk 0:02:47]} 7. a3 {[%clk 0:02:59]}  Be7 {[%clk 0:02:37]} 8. d5 {[%clk 0:02:57]}  exd5 {[%clk 0:02:36]} 9. cxd5 {[%clk 0:02:57]}  Bc5 {[%clk 0:02:32]} 10. Ng3 {[%clk 0:02:54]}  Re8+ {[%clk 0:02:25]} 11. Be2 {[%clk 0:02:54]}  d6 {[%clk 0:02:24]} 12. O-O {[%clk 0:02:53]}  h6 {[%clk 0:02:24]} 13. h3 {[%clk 0:02:53]}  a6 {[%clk 0:02:23]} 14. b4 {[%clk 0:02:46]}  Ba7 {[%clk 0:02:22]} 15. Bb2 {[%clk 0:02:46]}  Nbd7 {[%clk 0:02:22]} 16. Rc1 {[%clk 0:02:36]}  Ne5 {[%clk 0:02:22]} 17. Nce4 {[%clk 0:02:14]}  Nxe4 {[%clk 0:02:18]} 18. Nxe4 {[%clk 0:02:15]}  Bxh3 {[%clk 0:02:05]} 19. gxh3 {[%clk 0:02:11]}  Qh4 {[%clk 0:02:05]} 20. Nxd6 {[%clk 0:01:57]}  Qg3+ {[%clk 0:02:02]} 21. Kh1 {[%clk 0:01:57]}  Qxh3+ {[%clk 0:02:01]} 22. Kg1 {[%clk 0:01:58]}  Qg3+ {[%clk 0:00:58]} 23. Kh1 {[%clk 0:01:57]}  Qh4+ {[%clk 0:00:59]} 24. Kg2 {[%clk 0:01:30]}  Ng6 {[%clk 0:00:59]} 25. Rc4 {[%clk 0:01:16]}  Nf4+ {[%clk 0:00:25]} 26. Rxf4 {[%clk 0:01:11]}  Qxf4 {[%clk 0:00:26]} 27. Nxe8 {[%clk 0:01:10]}  Qg5+ {[%clk 0:00:26]} 28. Bg4 {[%clk 0:00:33]}  Rxe8 {[%clk 0:00:26]} 29. f4 {[%clk 0:00:33]}  Qh4 {[%clk 0:00:26]} 30. Qf3 {[%clk 0:00:16]}  Re3 {[%clk 0:00:23]} 31. d6 {[%clk 0:00:09]}  Rxf3 {[%clk 0:00:22]} 32. Kxf3 {[%clk 0:00:10]}  Bb6 {[%clk 0:00:20]} 33. d7 {[%clk 0:00:09]}  h5 {[%clk 0:00:19]} 34. Bf5 {[%clk 0:00:08]}  g6 {[%clk 0:00:20]} 35. Be4 {[%clk 0:00:08]}  Qh3+ {[%clk 0:00:19]} 36. Ke2 {[%clk 0:00:09]}  Qh2+ {[%clk 0:00:19]} 37. Kd3 {[%clk 0:00:08]}  Qxb2 {[%clk 0:00:19]} 0-1


[Site "https://www.chess.com"]

[Event "Titled Tuesday Blitz April 12 Early 2022"]
[White "Myshakov, Fyodor"]
[Black "Avazkhonov, Alikhon"]
[WhiteFideId "14111284"]
[BlackFideId "14208504"]
[WhiteElo "2310"]
[BlackElo "1739"]
[Result "0-1"]
[Round "09"]
[TimeControl "180+1"]
[Date "2022.04.13"]
[WhiteClock "0:01:28"]
[BlackClock "0:01:01"]

1. c4 {[%clk 0:02:59]}  e5 {[%clk 0:02:58]} 2. Nc3 {[%clk 0:03:00]}  d6 {[%clk 0:02:58]} 3. Nf3 {[%clk 0:03:00]}  f5 {[%clk 0:02:55]} 4. d3 {[%clk 0:03:00]}  Nf6 {[%clk 0:02:55]} 5. g3 {[%clk 0:03:00]}  Be7 {[%clk 0:02:56]} 6. Bg2 {[%clk 0:03:01]}  O-O {[%clk 0:02:56]} 7. O-O {[%clk 0:03:02]}  c6 {[%clk 0:02:57]} 8. e3 {[%clk 0:03:02]}  Na6 {[%clk 0:02:57]} 9. d4 {[%clk 0:03:02]}  e4 {[%clk 0:02:52]} 10. Nd2 {[%clk 0:03:02]}  d5 {[%clk 0:02:52]} 11. cxd5 {[%clk 0:03:02]}  cxd5 {[%clk 0:02:52]} 12. f3 {[%clk 0:03:03]}  Nc7 {[%clk 0:02:44]} 13. fxe4 {[%clk 0:03:03]}  fxe4 {[%clk 0:02:44]} 14. a3 {[%clk 0:03:02]}  Bg4 {[%clk 0:02:34]} 15. Qb3 {[%clk 0:03:00]}  Qd7 {[%clk 0:02:34]} 16. Ndxe4 {[%clk 0:02:56]}  Nxe4 {[%clk 0:02:28]} 17. Nxe4 {[%clk 0:02:55]}  Rxf1+ {[%clk 0:02:24]} 18. Bxf1 {[%clk 0:02:55]}  Rf8 {[%clk 0:02:07]} 19. Bd2 {[%clk 0:02:47]}  Qf5 {[%clk 0:01:48]} 20. Bd3 {[%clk 0:02:46]}  Bh3 {[%clk 0:01:35]} 21. g4 {[%clk 0:01:28]}  Qf3 {[%clk 0:01:01]} 0-1


[Site "https://www.chess.com"]

[Event "Titled Tuesday Blitz April 12 Early 2022"]
[White "Ovezdurdyyeva, Jemal"]
[Black "Chernomordik, Pavel"]
[WhiteFideId "14001888"]
[BlackFideId "2804530"]
[WhiteElo "1946"]
[BlackElo "2220"]
[Result "1-0"]
[Round "09"]
[TimeControl "180+1"]
[Date "2022.04.13"]
[WhiteClock "0:00:12"]
[BlackClock "0:00:27"]

1. e4 {[%clk 0:03:00]}  g6 {[%clk 0:02:59]} 2. d4 {[%clk 0:02:59]}  Bg7 {[%clk 0:02:58]} 3. c4 {[%clk 0:02:58]}  Nc6 {[%clk 0:02:58]} 4. Nf3 {[%clk 0:02:57]}  d6 {[%clk 0:02:57]} 5. Nc3 {[%clk 0:02:57]}  Bg4 {[%clk 0:02:56]} 6. Be3 {[%clk 0:02:47]}  Bxf3 {[%clk 0:02:54]} 7. gxf3 {[%clk 0:02:46]}  e5 {[%clk 0:02:54]} 8. d5 {[%clk 0:02:38]}  Nd4 {[%clk 0:02:53]} 9. Bg2 {[%clk 0:02:36]}  c5 {[%clk 0:02:51]} 10. f4 {[%clk 0:02:08]}  exf4 {[%clk 0:02:48]} 11. Bxf4 {[%clk 0:02:07]}  Nf6 {[%clk 0:02:48]} 12. Ne2 {[%clk 0:02:00]}  Nh5 {[%clk 0:02:43]} 13. Be3 {[%clk 0:01:58]}  O-O {[%clk 0:02:34]} 14. Nxd4 {[%clk 0:01:44]}  cxd4 {[%clk 0:02:31]} 15. Bxd4 {[%clk 0:01:44]}  Qa5+ {[%clk 0:02:27]} 16. Kf1 {[%clk 0:01:29]}  Rac8 {[%clk 0:02:10]} 17. Bxg7 {[%clk 0:01:27]}  Kxg7 {[%clk 0:02:07]} 18. b3 {[%clk 0:01:21]}  f5 {[%clk 0:02:02]} 19. Qd4+ {[%clk 0:01:17]}  Kg8 {[%clk 0:01:59]} 20. exf5 {[%clk 0:01:13]}  Rxf5 {[%clk 0:01:47]} 21. Bh3 {[%clk 0:01:10]}  Rf4 {[%clk 0:01:46]} 22. Be6+ {[%clk 0:01:10]}  Kf8 {[%clk 0:01:40]} 23. Qh8+ {[%clk 0:01:05]}  Ke7 {[%clk 0:01:40]} 24. Qxh7+ {[%clk 0:00:58]}  Kf6 {[%clk 0:01:35]} 25. Bxc8 {[%clk 0:00:31]}  Qd2 {[%clk 0:01:27]} 26. Qh8+ {[%clk 0:00:26]}  Kg5 {[%clk 0:01:18]} 27. Rg1+ {[%clk 0:00:23]}  Kh4 {[%clk 0:01:14]} 28. Qd8+ {[%clk 0:00:23]}  Nf6 {[%clk 0:01:13]} 29. Rg4+ {[%clk 0:00:17]}  Rxg4 {[%clk 0:01:06]} 30. Bxg4 {[%clk 0:00:18]}  Qd4 {[%clk 0:00:59]} 31. Re1 {[%clk 0:00:14]}  Kxg4 {[%clk 0:00:53]} 32. Qxd6 {[%clk 0:00:15]}  Nh5 {[%clk 0:00:43]} 33. Qxg6+ {[%clk 0:00:14]}  Kf4 {[%clk 0:00:27]} 34. Qxh5 {[%clk 0:00:12]} 1-0


[Site "https://www.chess.com"]